bitfinex/quotes_BTCUSD_20251010
["timestamp","ask_amount","ask_price","bid_price","bid_amount"]
[1760121243332,0.16967845,117870.0,117860.0,0.04382]
[1760121243559,0.97894741,117870.0,117860.0,0.1409333]
[1760121243789,0.97894741,117870.0,117860.0,0.39493615]
[1760121244484,1.02088319,117870.0,117860.0,0.1409333]
[1760121244719,0.16969285,117860.0,117850.0,0.09825026]
[1760121244954,0.16969285,117860.0,117850.0,0.40655957]
[1760121244955,0.73764181,117860.0,117850.0,0.40655957]
[1760121245633,0.73764181,117860.0,117850.0,0.43324778]
[1760121245863,0.80926896,117860.0,117850.0,0.40655957]
[1760121246080,0.56794896,117860.0,117850.0,0.40655957]
[1760121246287,0.97896181,117860.0,117850.0,0.40655957]
[1760121246920,0.97896181,117860.0,117850.0,0.40755957]
[1760121247192,0.97896181,117860.0,117850.0,0.23885232]
[1760121247193,1.00669181,117860.0,117850.0,0.23885232]
[1760121247412,1.37401181,117860.0,117850.0,0.002]
[1760121247625,1.51886181,117860.0,117850.0,0.002]
[1760121248268,1.62016285,117860.0,117850.0,0.001]
[1760121248513,1.62805509,117860.0,117850.0,0.001]
[1760121248728,1.62805632,117860.0,117850.0,0.001]
[1760121249178,2.83861728,117860.0,117850.0,0.001]
[1760121249807,4.42962683,117860.0,117850.0,0.001]
[1760121250030,4.69153683,117860.0,117850.0,0.001]
[1760121250280,0.16973606,117830.0,117820.0,0.04102]
[1760121250483,0.16973606,117830.0,117810.0,0.06619503]
[1760121250484,0.16975046,117820.0,117810.0,0.06619503]
[1760121250697,0.82425942,117820.0,117810.0,0.06619503]
[1760121250918,0.16976487,117810.0,117800.0,0.04142]
[1760121251152,0.97907383,117810.0,117800.0,0.04142]
[1760121251358,1.03760383,117810.0,117800.0,0.05588]
[1760121251569,1.03760383,117810.0,117800.0,0.09740423]
[1760121252199,0.75585598,117810.0,117800.0,0.26718351]
[1760121252408,0.99725598,117810.0,117800.0,0.35149351]
[1760121252623,0.97911383,117810.0,117800.0,0.18171423]
[1760121252835,0.80934896,117810.0,117800.0,0.35149351]
[1760121253049,0.41116487,117810.0,117800.0,0.35149351]
[1760121253270,0.42929884,117810.0,117800.0,0.35149351]
[1760121253481,0.2414,117810.0,117800.0,0.35149351]
[1760121253715,0.25664024,117810.0,117800.0,0.43461557]
[1760121254129,0.01524024,117810.0,117800.0,0.43461557]
[1760121254347,0.01811872,117820.0,117800.0,0.46476747]
[1760121254551,0.01811872,117820.0,117810.0,0.40836883]
[1760121255039,0.01811872,117820.0,117810.0,0.46384883]
[1760121255249,0.03309135,117820.0,117810.0,0.46384883]
[1760121255468,0.20284181,117820.0,117810.0,0.46384883]
[1760121256113,0.20284181,117820.0,117810.0,0.29408396]
[1760121256330,0.79350603,117820.0,117810.0,0.49053704]
[1760121256534,0.79350603,117820.0,117810.0,0.46384883]
[1760121256942,0.05580661,117820.0,117810.0,0.46384883]
[1760121257145,0.79350603,117820.0,117810.0,0.46484883]
[1760121257949,0.62375557,117820.0,117810.0,0.46484883]
[1760121258142,0.05580661,117820.0,117810.0,0.46484883]
[1760121258383,0.22555707,117820.0,117810.0,0.46484883]
[1760121258592,0.79350603,117820.0,117810.0,0.46484883]
[1760121259205,0.8240087,117820.0,117810.0,0.46484883]
[1760121259437,0.65425824,117820.0,117810.0,0.46484883]
[1760121259680,0.8240087,117820.0,117810.0,0.46484883]
[1760121259888,0.25598202,117820.0,117810.0,0.46484883]
[1760121260304,0.80121572,117820.0,117810.0,0.46484883]
[1760121260514,0.82387498,117820.0,117810.0,0.46484883]
[1760121260726,0.65412452,117820.0,117810.0,0.46484883]
[1760121260930,0.82387498,117820.0,117810.0,0.46484883]
[1760121261134,0.80121572,117820.0,117810.0,0.46484883]
[1760121262183,0.10926792,117820.0,117810.0,0.46484883]
[1760121262327,0.84696734,117820.0,117810.0,0.46484883]
[1760121262537,0.27901838,117820.0,117810.0,0.46484883]
[1760121263178,0.07876525,117820.0,117810.0,0.46484883]
[1760121263516,0.5202034,117820.0,117810.0,0.46484883]
[1760121263722,0.35045294,117820.0,117810.0,0.46484883]
[1760121264451,0.35046775,117820.0,117810.0,0.46484883]
[1760121265080,0.52021821,117820.0,117810.0,0.46484883]
[1760121265373,0.48995571,117820.0,117810.0,0.29508396]
[1760121265586,1.05790467,117820.0,117810.0,0.29508396]
[1760121265823,1.05790467,117820.0,117810.0,0.18181]
[1760121266071,1.05790467,117820.0,117810.0,0.35157487]
[1760121266072,1.09898173,117820.0,117810.0,0.35157487]
[1760121266273,1.02792011,117820.0,117810.0,0.18181]
[1760121266500,1.02792011,117820.0,117800.0,0.04192423]
[1760121266501,0.16976487,117810.0,117800.0,0.04192423]
[1760121266709,0.83258363,117810.0,117800.0,0.09740423]
[1760121267946,0.83258363,117810.0,117800.0,0.09840423]
[1760121268145,0.83258363,117810.0,117800.0,0.09940423]
[1760121268595,0.84047559,117810.0,117800.0,0.09940423]
[1760121269237,0.84047559,117810.0,117800.0,0.00290423]
[1760121269478,1.20559285,117810.0,117800.0,0.00290423]
[1760121269713,1.15109299,117810.0,117800.0,0.00290423]
[1760121270003,1.82976582,117810.0,117800.0,0.00290423]
[1760121270238,1.16687505,117800.0,117790.0,0.0004]
[1760121270462,1.78292612,117800.0,117790.0,0.0004504]
[1760121270677,1.78738612,117800.0,117790.0,0.0004504]
[1760121270900,2.02886612,117800.0,117790.0,0.0587704]
[1760121271116,2.11726612,117800.0,117790.0,0.1019604]
[1760121271325,1.81323299,117800.0,117790.0,0.1019604]
[1760121271484,2.21744299,117800.0,117790.0,0.0004504]
[1760121271692,2.16576038,117800.0,117790.0,0.0014504]
[1760121271899,2.16576446,117800.0,117790.0,0.0014504]
[1760121272213,2.14303023,117800.0,117790.0,0.0024504]
[1760121273605,1.81315023,117800.0,117790.0,0.0024504]
[1760121273828,2.05463023,117800.0,117790.0,0.0607704]
[1760121274036,2.13857023,117800.0,117790.0,0.1039604]
[1760121274250,2.14369023,117800.0,117790.0,0.1039604]
[1760121275233,2.14369023,117800.0,117790.0,0.0024504]
[1760121275436,2.55292023,117800.0,117790.0,0.0024504]
[1760121275638,2.5983902,117800.0,117790.0,0.0024504]
[1760121275841,2.56808333,117800.0,117790.0,0.0024504]
[1760121276095,2.00013437,117800.0,117790.0,0.0024504]
[1760121276265,2.56808333,117800.0,117790.0,0.0024504]
[1760121276877,2.56808333,117800.0,117790.0,0.0014504]
[1760121277547,2.60083816,117800.0,117790.0,0.0014504]
[1760121279716,2.61636914,117800.0,117790.0,0.0014504]
[1760121279937,1.61655535,117800.0,117790.0,0.0597704]
[1760121280145,2.54209914,117800.0,117790.0,0.11303944]
[1760121280352,2.19465914,117800.0,117790.0,0.19620944]
[1760121280596,2.13365819,117800.0,117790.0,0.19620944]
[1760121280825,2.50919912,117800.0,117790.0,0.19620944]
[1760121281052,2.12937819,117800.0,117790.0,0.11303944]
[1760121281287,2.19796819,117800.0,117790.0,0.01152944]
[1760121281496,2.82145941,117800.0,117790.0,0.0014504]
[1760121281738,2.86766619,117800.0,117790.0,0.0014504]
[1760121282148,3.20766619,117800.0,117790.0,0.0014504]
[1760121283565,2.57512406,117800.0,117790.0,0.0014504]
[1760121283774,2.50653406,117800.0,117790.0,0.0014504]
[1760121285906,2.57512406,117800.0,117790.0,0.0014504]
[1760121287389,2.17657406,117800.0,117790.0,0.0014504]
[1760121287593,2.50653406,117800.0,117790.0,0.0014504]
[1760121287809,2.57512406,117800.0,117790.0,0.0014504]
[1760121288015,3.14398951,117800.0,117790.0,0.0014504]
[1760121289047,3.93739957,117800.0,117790.0,0.0014504]
[1760121289251,3.91461214,117800.0,117790.0,0.0014504]
[1760121290026,3.58465214,117800.0,117790.0,0.0014504]
[1760121290286,3.9401426,117800.0,117790.0,0.0014504]
[1760121290702,7.67043846,117800.0,117790.0,0.0014504]
[1760121290960,7.89207473,117800.0,117790.0,0.0014504]
[1760121291174,7.18061085,117800.0,117790.0,0.0014504]
[1760121291386,4.62566675,117800.0,117790.0,0.0014504]
[1760121291601,5.25059085,117800.0,117790.0,0.0004504]
[1760121291822,3.26205185,117800.0,117790.0,0.0004504]
[1760121292030,5.38530285,117800.0,117790.0,0.0004504]
[1760121292227,5.38531285,117800.0,117790.0,0.0004504]
[1760121292437,2.03588095,117800.0,117790.0,0.0004504]
[1760121292697,5.42511585,117800.0,117790.0,0.0004504]
[1760121292920,5.58778685,117800.0,117790.0,0.0004504]
[1760121293171,4.88077299,117800.0,117790.0,0.0004504]
[1760121293386,2.86350568,117800.0,117790.0,0.0004504]
[1760121293601,5.09609468,117800.0,117790.0,0.0004504]
[1760121293807,5.23669468,117800.0,117790.0,0.0004504]
[1760121294073,5.20601868,117800.0,117790.0,0.0004504]
[1760121294239,5.085104,117800.0,117790.0,0.0004504]
[1760121294463,4.49765655,117800.0,117790.0,0.0004504]
[1760121294631,4.20876933,117800.0,117790.0,0.1846404]
[1760121295006,4.28312933,117800.0,117790.0,0.0004504]
[1760121295659,4.85199478,117800.0,117790.0,0.0004504]
[1760121296724,4.85963257,117800.0,117790.0,0.0004504]
[1760121297676,4.55245238,117800.0,117790.0,0.0004504]
[1760121297881,4.88241238,117800.0,117790.0,0.0004504]
[1760121298084,4.85199478,117800.0,117790.0,0.0004504]
[1760121298303,4.8824294,117800.0,117790.0,0.0004504]
[1760121299265,4.83683639,117800.0,117790.0,0.0004504]
[1760121300376,8.17576639,117800.0,117790.0,0.0004504]
[1760121300591,3.2670334,117800.0,117790.0,0.0004504]
[1760121300829,7.90063768,117800.0,117790.0,0.0004504]
[1760121301037,7.49624068,117800.0,117790.0,0.0004504]
[1760121301250,3.29258042,117800.0,117790.0,0.0004504]
[1760121301459,7.02258442,117800.0,117790.0,0.0004504]
[1760121301699,5.09335442,117800.0,117790.0,0.0004504]
[1760121301906,4.99865241,117800.0,117790.0,0.0004504]
[1760121302113,6.48167869,117800.0,117790.0,0.0004504]
[1760121302345,6.95540269,117800.0,117790.0,0.0004504]
[1760121302555,6.50324869,117800.0,117790.0,0.0004504]
[1760121302765,6.02875569,117800.0,117790.0,0.0004504]
[1760121302982,6.40122469,117800.0,117790.0,0.0004504]
[1760121303196,6.41812469,117800.0,117790.0,0.0004504]
[1760121303404,5.79855239,117800.0,117790.0,0.0004504]
[1760121303619,4.94220239,117800.0,117790.0,0.0552204]
[1760121303825,3.18319239,117800.0,117790.0,0.01783244]
[1760121304035,5.23189239,117800.0,117790.0,0.0004504]
[1760121304249,5.33368465,117800.0,117790.0,0.0004504]
[1760121304462,5.14139465,117800.0,117790.0,0.0004504]
[1760121304670,5.28441711,117800.0,117790.0,0.0004504]
[1760121304909,5.59229711,117800.0,117790.0,0.0004504]
[1760121305115,7.49649021,117800.0,117790.0,0.0004504]
[1760121305334,7.56978721,117800.0,117790.0,0.0004504]
[1760121305579,7.75742021,117800.0,117790.0,0.0004504]
[1760121305793,7.95034411,117800.0,117790.0,0.0004504]
[1760121306010,3.16036511,117800.0,117790.0,0.0004504]
[1760121306227,3.20595812,117800.0,117790.0,0.0004504]
[1760121306439,8.10518512,117800.0,117790.0,0.0004504]
[1760121306646,8.20595812,117800.0,117790.0,0.0004504]
[1760121307088,8.18321937,117800.0,117790.0,0.0004504]
[1760121307302,7.11510077,117800.0,117790.0,0.0004504]
[1760121307525,8.18321937,117800.0,117790.0,0.0004504]
[1760121307734,3.17538082,117800.0,117790.0,0.0004504]
[1760121307944,8.3024624,117800.0,117790.0,0.0004504]
[1760121308186,7.91107868,117800.0,117790.0,0.0004504]
[1760121308399,7.91108868,117800.0,117790.0,0.0004504]
[1760121308608,3.48331568,117800.0,117790.0,0.0004504]
[1760121308836,7.91108868,117800.0,117790.0,0.0004504]
[1760121309048,8.78331568,117800.0,117790.0,0.0004504]
[1760121309706,3.78331568,117800.0,117790.0,0.0004504]
[1760121310195,8.78331568,117800.0,117790.0,0.0004504]
[1760121310398,9.13715568,117800.0,117790.0,0.0004504]
[1760121310521,9.10670594,117800.0,117790.0,0.0004504]
[1760121311129,4.13715568,117800.0,117790.0,0.0004504]
[1760121311327,9.13715568,117800.0,117790.0,0.0004504]
[1760121312040,8.45335568,117800.0,117790.0,0.0004504]
[1760121312236,8.67425368,117800.0,117790.0,0.0004504]
[1760121312466,8.51550394,117800.0,117790.0,0.0004504]
[1760121312695,8.70833294,117800.0,117790.0,0.0004504]
[1760121312857,3.82375594,117800.0,117790.0,0.0004504]
[1760121313280,8.82375594,117800.0,117790.0,0.0004504]
[1760121313974,3.82375594,117800.0,117790.0,0.0004504]
[1760121314176,8.82375594,117800.0,117790.0,0.0004504]
[1760121314486,8.13991594,117800.0,117790.0,0.0004504]
[1760121314690,8.82375594,117800.0,117790.0,0.0004504]
[1760121315504,8.82376176,117800.0,117790.0,0.0004504]
[1760121315712,3.82376176,117800.0,117790.0,0.0004504]
[1760121315902,8.82376176,117800.0,117790.0,0.0004504]
[1760121316966,3.82377352,117800.0,117790.0,0.0004504]
[1760121317389,8.82377352,117800.0,117790.0,0.0004504]
[1760121318233,7.82497152,117800.0,117790.0,0.0004504]
[1760121318442,7.84538452,117800.0,117790.0,0.0004504]
[1760121318680,7.93851452,117800.0,117790.0,0.0004504]
[1760121319316,8.31957452,117800.0,117790.0,0.0004504]
[1760121319526,7.62924352,117800.0,117790.0,0.0004504]
[1760121319736,7.48587352,117800.0,117790.0,0.0004504]
[1760121319961,6.56073452,117800.0,117790.0,0.0004504]
[1760121320174,3.82373352,117800.0,117790.0,0.0004504]
[1760121320388,6.59996052,117800.0,117790.0,0.0004504]
[1760121320619,5.44327352,117800.0,117790.0,0.0004504]
[1760121320823,5.34512152,117800.0,117790.0,0.0004504]
[1760121321031,5.33408652,117800.0,117790.0,0.0004504]
[1760121321240,5.31304124,117800.0,117790.0,0.0004504]
[1760121321453,5.39154124,117800.0,117790.0,0.0004504]
[1760121321665,7.49330524,117800.0,117790.0,0.0004504]
[1760121321871,7.49594361,117800.0,117790.0,0.0004504]
[1760121322006,7.54180461,117800.0,117790.0,0.0004504]
[1760121322631,7.52289461,117800.0,117790.0,0.0004504]
[1760121322842,7.42616161,117800.0,117790.0,0.0004504]
[1760121323041,2.81708861,117800.0,117790.0,0.0004504]
[1760121323289,3.50092861,117800.0,117790.0,0.0004504]
[1760121323490,7.92306461,117800.0,117790.0,0.0004504]
[1760121323694,3.50092861,117800.0,117790.0,0.0004504]
[1760121324115,7.89742961,117800.0,117790.0,0.0004504]
[1760121324329,7.91015961,117800.0,117790.0,0.0004504]
[1760121324548,7.80422961,117800.0,117790.0,0.0004504]
[1760121324756,7.58418061,117800.0,117790.0,0.0004504]
[1760121324976,7.03673461,117800.0,117790.0,0.0004504]
[1760121325187,7.52156361,117800.0,117790.0,0.0004504]
[1760121325585,2.81708861,117800.0,117790.0,0.0004504]
[1760121325812,3.14704861,117800.0,117790.0,0.0004504]
[1760121326008,5.18003161,117800.0,117790.0,0.0004504]
[1760121326216,5.15071661,117800.0,117790.0,0.0004504]
[1760121326426,5.15341261,117800.0,117790.0,0.0004504]
[1760121326627,5.14788961,117800.0,117790.0,0.0004504]
[1760121326835,5.65830961,117800.0,117790.0,0.0004504]
[1760121327039,6.19542761,117800.0,117790.0,0.0004504]
[1760121327485,6.19807325,117800.0,117790.0,0.0004504]
[1760121327684,6.08706025,117800.0,117790.0,0.0004504]
[1760121327890,6.13437525,117800.0,117790.0,0.0004504]
[1760121328070,0.50980811,117780.0,117770.0,0.0004]
[1760121328276,0.50980811,117780.0,117770.0,0.00052832]
[1760121328277,1.32394741,117780.0,117770.0,0.00052832]
[1760121328481,1.33513741,117780.0,117770.0,0.00052832]
[1760121328680,1.33513741,117780.0,117770.0,0.05244832]
[1760121329155,1.33513741,117780.0,117770.0,0.10969215]
[1760121329401,1.32394741,117780.0,117770.0,0.19146215]
[1760121329601,1.08242741,117780.0,117770.0,0.19146215]
[1760121329803,1.41238741,117780.0,117770.0,0.10969215]
[1760121330016,1.41238741,117780.0,117770.0,0.19146215]
[1760121330463,1.41238741,117780.0,117770.0,0.19246215]
[1760121330749,1.42368741,117780.0,117770.0,0.11069215]
[1760121330954,1.41238741,117780.0,117770.0,0.19246215]
[1760121331126,0.87832811,117780.0,117770.0,0.19246215]
[1760121331354,1.41238741,117780.0,117770.0,0.19246215]
[1760121331565,1.42311741,117780.0,117770.0,0.19246215]
[1760121331760,1.42311741,117780.0,117770.0,0.11069215]
[1760121332149,1.44865027,117780.0,117770.0,0.11069215]
[1760121332353,1.51651027,117780.0,117770.0,0.02017215]
[1760121332564,1.51651027,117780.0,117770.0,0.00252832]
[1760121332986,1.59963233,117780.0,117770.0,0.00252832]
[1760121333406,3.32758833,117780.0,117770.0,0.00252832]
[1760121333609,1.37227309,117770.0,117760.0,0.0004]
[1760121333820,2.20604484,117770.0,117760.0,0.0004]
[1760121334185,2.08053554,117770.0,117760.0,0.0004]
[1760121334403,2.10607352,117770.0,117760.0,0.0004]
[1760121334809,1.64600952,117770.0,117760.0,0.0014]
[1760121335014,1.31604952,117770.0,117760.0,0.0014]
[1760121335219,1.64600952,117770.0,117760.0,0.0014]
[1760121335425,1.62485952,117770.0,117760.0,0.0014]
[1760121335629,1.71329952,117770.0,117760.0,0.0014]
[1760121335830,1.71329952,117770.0,117760.0,0.0024]
[1760121336643,1.68527752,117770.0,117760.0,0.0024]
[1760121337064,1.67808152,117770.0,117760.0,0.05432]
[1760121337268,1.67808152,117770.0,117760.0,0.071789]
[1760121337472,1.67808152,117770.0,117760.0,0.019869]
[1760121337473,1.74537152,117770.0,117760.0,0.019869]
[1760121337688,1.22214546,117770.0,117760.0,0.019869]
[1760121337898,1.04279246,117770.0,117760.0,0.192159]
[1760121338120,1.37275246,117770.0,117760.0,0.192159]
[1760121338363,1.37275246,117770.0,117760.0,0.110389]
[1760121338588,1.37275246,117770.0,117760.0,0.058469]
[1760121338589,1.29561246,117770.0,117760.0,0.058469]
[1760121338809,1.45134246,117770.0,117760.0,0.0024]
[1760121340562,1.38405246,117770.0,117760.0,0.0024]
[1760121340799,1.38405246,117770.0,117760.0,0.05432]
[1760121341035,1.04279246,117770.0,117760.0,0.09292]
[1760121341290,1.37275246,117770.0,117760.0,0.17469]
[1760121341486,0.81315518,117770.0,117760.0,0.17469]
[1760121341708,1.34721448,117770.0,117760.0,0.17469]
[1760121342812,0.48319518,117770.0,117760.0,0.34452695]
[1760121343009,0.65547305,117760.0,117750.0,0.20844909]
[1760121343216,0.89699305,117760.0,117750.0,0.26036909]
[1760121343855,0.65547305,117760.0,117750.0,0.26036909]
[1760121344072,0.89699305,117760.0,117750.0,0.26036909]
[1760121344290,0.89699305,117760.0,117750.0,0.26136909]
[1760121344985,0.65547305,117760.0,117750.0,0.45741305]
[1760121345260,0.89699305,117760.0,117750.0,0.45741305]
[1760121349260,1.06683,117760.0,117750.0,0.45741305]
[1760121349502,1.6008893,117760.0,117750.0,0.17429]
[1760121349720,1.6562493,117760.0,117750.0,0.26237138]
[1760121349942,1.6008893,117760.0,117750.0,0.34738138]
[1760121350377,1.6008893,117760.0,117750.0,0.17753]
[1760121350622,1.6008893,117760.0,117750.0,0.34738138]
[1760121350861,1.6008893,117760.0,117750.0,0.09252]
[1760121350862,1.7794893,117760.0,117750.0,0.09252]
[1760121351077,1.6975993,117760.0,117750.0,0.09252]
[1760121352187,1.6975993,117760.0,117750.0,0.002]
[1760121352365,1.7794893,117760.0,117750.0,0.002]
[1760121354079,1.24543,117760.0,117750.0,0.002]
[1760121354285,1.7794893,117760.0,117750.0,0.002]
[1760121354732,2.3135486,117760.0,117750.0,0.002]
[1760121355569,1.7794893,117760.0,117750.0,0.002]
[1760121355791,1.24543,117760.0,117750.0,0.002]
[1760121356025,1.7794893,117760.0,117750.0,0.002]
[1760121356665,1.24543,117760.0,117750.0,0.002]
[1760121357079,1.7794893,117760.0,117750.0,0.002]
[1760121358182,1.00391,117760.0,117750.0,0.05741]
[1760121358413,1.8635593,117760.0,117750.0,0.011809]
[1760121359007,2.82074066,117760.0,117750.0,0.002]
[1760121359229,2.49082066,117760.0,117750.0,0.002]
[1760121359445,2.5163618,117760.0,117750.0,0.002]
[1760121359647,2.6048018,117760.0,117750.0,0.002]
[1760121359863,2.8462818,117760.0,117750.0,0.002]
[1760121360074,2.8462818,117760.0,117750.0,0.001]
[1760121360283,2.8462818,117760.0,117750.0,0.002]
[1760121360951,2.8462818,117760.0,117750.0,0.001]
[1760121361579,2.8463218,117760.0,117750.0,0.001]
[1760121361811,0.50985138,117750.0,117740.0,0.0004]
[1760121362034,1.32432068,117750.0,117740.0,0.0004]
[1760121362258,1.45675068,117750.0,117740.0,0.0004]
[1760121363170,1.45675068,117750.0,117740.0,0.0014]
[1760121363633,1.88338264,117750.0,117740.0,0.0014]
[1760121363843,2.21338264,117750.0,117740.0,0.0014]
[1760121364068,2.2262657,117750.0,117740.0,0.0014]
[1760121364519,1.8962657,117750.0,117740.0,0.0024]
[1760121364785,2.2262657,117750.0,117740.0,0.0024]
[1760121364991,2.2249457,117750.0,117740.0,0.05644]
[1760121365211,2.6098157,117750.0,117740.0,0.05644]
[1760121365424,2.6487057,117750.0,117740.0,0.05644]
[1760121366487,1.44649444,117750.0,117740.0,0.05644]
[1760121366693,2.6487057,117750.0,117740.0,0.05644]
[1760121367958,1.02273444,117750.0,117740.0,0.05644]
[1760121368170,2.5549457,117750.0,117740.0,0.05644]
[1760121368882,2.6098157,117750.0,117740.0,0.05644]
[1760121369095,2.6098157,117750.0,117740.0,0.0024]
[1760121369096,2.7262657,117750.0,117740.0,0.0024]
[1760121369512,2.6487057,117750.0,117740.0,0.05644]
[1760121372754,2.7262657,117750.0,117740.0,0.05644]
[1760121372977,2.6487057,117750.0,117740.0,0.05644]
[1760121373433,2.6487057,117750.0,117740.0,0.0024]
[1760121373662,2.7262657,117750.0,117740.0,0.0024]
[1760121374773,2.6487057,117750.0,117740.0,0.05644]
[1760121375428,2.7262657,117750.0,117740.0,0.05644]
[1760121375647,2.7262657,117750.0,117740.0,0.0024]
[1760121377672,2.7262657,117750.0,117740.0,0.05644]
[1760121377910,2.7262657,117750.0,117740.0,0.0024]
[1760121380679,1.11649444,117750.0,117740.0,0.05644]
[1760121380888,2.6486657,117750.0,117740.0,0.05644]
[1760121381097,2.6486657,117750.0,117740.0,0.0024]
[1760121381306,2.7262257,117750.0,117740.0,0.0024]
[1760121381757,1.52401444,117750.0,117740.0,0.05644]
[1760121381967,2.7262257,117750.0,117740.0,0.05644]
[1760121382174,1.44645444,117750.0,117740.0,0.073908]
[1760121382383,2.7262257,117750.0,117740.0,0.019868]
[1760121382590,2.2262257,117750.0,117740.0,0.019868]
[1760121383041,2.2262257,117750.0,117740.0,0.073908]
[1760121384575,2.1486657,117750.0,117740.0,0.073908]
[1760121385646,1.12384007,117750.0,117740.0,0.151468]
[1760121385855,1.45380007,117750.0,117740.0,0.151468]
[1760121386064,2.0549057,117750.0,117740.0,0.151468]
[1760121386283,2.1097757,117750.0,117740.0,0.073908]
[1760121386714,2.2262257,117750.0,117740.0,0.019868]
[1760121386923,2.2262257,117750.0,117740.0,0.0024]
[1760121390622,1.8962657,117750.0,117740.0,0.05419]
[1760121390828,2.1486657,117750.0,117740.0,0.05419]
[1760121391234,2.2328357,117750.0,117740.0,0.05419]
[1760121391448,2.2328357,117750.0,117740.0,0.0024]
[1760121392314,2.6770357,117750.0,117740.0,0.0024]
[1760121392525,2.5535257,117750.0,117740.0,0.05419]
[1760121392738,2.6781457,117750.0,117740.0,0.05419]
[1760121393161,2.5939757,117750.0,117740.0,0.05419]
[1760121394214,2.1497757,117750.0,117740.0,0.05419]
[1760121394631,2.1497757,117750.0,117740.0,0.0024]
[1760121394632,2.2339457,117750.0,117740.0,0.0024]
[1760121394841,2.1497757,117750.0,117740.0,0.05419]
[1760121395055,2.20841944,117750.0,117740.0,0.0024]
[1760121397483,2.20841944,117750.0,117740.0,0.05419]
[1760121397685,2.20841944,117750.0,117740.0,0.0024]
[1760121398918,4.42353062,117750.0,117740.0,0.0024]
[1760121399140,3.61901635,117750.0,117740.0,0.0024]
[1760121399357,3.46078435,117750.0,117740.0,0.0024]
[1760121400384,4.06188998,117750.0,117740.0,0.0024]
[1760121400587,4.06188998,117750.0,117740.0,0.0004]
[1760121400900,4.12714506,117750.0,117740.0,0.0004]
[1760121401061,4.12714506,117750.0,117740.0,0.0014]
[1760121401062,2.58731243,117750.0,117740.0,0.0014]
[1760121401267,2.91723243,117750.0,117740.0,0.0014]
[1760121401639,2.91723243,117750.0,117740.0,0.0004]
[1760121401820,2.91723243,117750.0,117740.0,0.0014]
[1760121402019,2.91723243,117750.0,117740.0,0.2230558]
[1760121402020,1.82493089,117750.0,117740.0,0.2230558]
[1760121402231,2.32470227,117750.0,117740.0,0.0014]
[1760121403046,2.32470227,117750.0,117740.0,0.0022]
[1760121404308,2.40782433,117750.0,117740.0,0.0022]
[1760121404631,3.17844233,117750.0,117740.0,0.0022]
[1760121404890,3.10008633,117750.0,117740.0,0.0022]
[1760121405044,3.11837434,117750.0,117740.0,0.0022]
[1760121406134,2.78845434,117750.0,117740.0,0.0022]
[1760121406313,3.11837434,117750.0,117740.0,0.0022]
[1760121406570,3.10008633,117750.0,117740.0,0.0022]
[1760121406775,3.11837638,117750.0,117740.0,0.0022]
[1760121407413,2.97216533,117750.0,117740.0,0.0022]
[1760121410186,2.64224533,117750.0,117740.0,0.0022]
[1760121410335,2.97216533,117750.0,117740.0,0.0022]
[1760121411962,2.99046083,117750.0,117740.0,0.0022]
[1760121414273,2.97216533,117750.0,117740.0,0.0022]
[1760121414654,1.44003407,117750.0,117740.0,0.0022]
[1760121414875,2.97216533,117750.0,117740.0,0.0022]
[1760121415316,2.64224533,117750.0,117740.0,0.0022]
[1760121415524,2.97216533,117750.0,117740.0,0.0022]
[1760121416728,2.99045692,117750.0,117740.0,0.0022]
[1760121418477,3.59156255,117750.0,117740.0,0.0022]
[1760121418683,2.99045692,117750.0,117740.0,0.0022]
[1760121419998,2.66053692,117750.0,117740.0,0.0022]
[1760121420174,2.99045692,117750.0,117740.0,0.0022]
[1760121420762,2.66053692,117750.0,117740.0,0.0022]
[1760121420963,2.99045692,117750.0,117740.0,0.0022]
[1760121421629,2.66053692,117750.0,117740.0,0.0022]
[1760121422179,2.99045692,117750.0,117740.0,0.0022]
[1760121423321,1.76838586,117730.0,117720.0,0.55405372]
[1760121423523,1.76838586,117730.0,117720.0,0.68499372]
[1760121423524,2.00982586,117730.0,117720.0,0.68499372]
[1760121424572,2.06428687,117730.0,117720.0,0.42882515]
[1760121424981,2.06428687,117730.0,117720.0,0.42982515]
[1760121425187,1.46318124,117730.0,117720.0,0.42982515]
[1760121425398,2.06428687,117730.0,117720.0,0.42982515]
[1760121425610,2.11938879,117730.0,117720.0,0.37766515]
[1760121426239,2.11938879,117730.0,117720.0,0.42982515]
[1760121426454,2.65381634,117730.0,117720.0,0.37766515]
[1760121426677,2.7369384,117730.0,117720.0,0.37766515]
[1760121427134,2.20251085,117730.0,117720.0,0.37766515]
[1760121427341,2.20251085,117730.0,117720.0,0.37666515]
[1760121427751,2.20251085,117730.0,117720.0,0.37766515]
[1760121428381,2.20251085,117730.0,117720.0,0.37566515]
[1760121429031,1.96107085,117730.0,117720.0,0.37566515]
[1760121429254,2.4954984,117730.0,117720.0,0.37566515]
[1760121429498,1.31022124,117730.0,117720.0,0.45088515]
[1760121429710,1.31022124,117730.0,117720.0,0.37566515]
[1760121429711,2.29095085,117730.0,117720.0,0.37566515]
[1760121430317,2.8253784,117730.0,117720.0,0.37566515]
[1760121430525,2.84367491,117730.0,117720.0,0.37566515]
[1760121430747,4.26147856,117730.0,117720.0,0.37566515]
[1760121431046,5.66892356,117730.0,117720.0,0.37566515]
[1760121431291,5.84280801,117730.0,117720.0,0.37566515]
[1760121431517,6.93868256,117730.0,117720.0,0.37566515]
[1760121431730,8.23304356,117730.0,117720.0,1e-08]
[1760121433459,5.76989466,117720.0,117710.0,0.13369279]
[1760121433461,0.16990909,117710.0,117700.0,0.1050733]
[1760121433670,5.6515347,117710.0,117700.0,0.1050733]
[1760121433873,1.3411577,117710.0,117700.0,0.1050733]
[1760121434080,1.6710777,117710.0,117700.0,0.1050733]
[1760121434469,6.1768247,117710.0,117700.0,0.1050733]
[1760121434687,5.5301357,117710.0,117700.0,0.1050733]
[1760121434912,5.35952735,117710.0,117700.0,0.1050733]
[1760121435149,1.27652935,117710.0,117700.0,0.12058063]
[1760121435369,1.50644935,117710.0,117700.0,0.12158063]
[1760121435835,1.50744935,117710.0,117700.0,0.12158063]
[1760121436306,1.50644935,117710.0,117700.0,0.12158063]
[1760121436549,1.17652935,117710.0,117700.0,0.12158063]
[1760121436735,1.41796935,117710.0,117700.0,0.12058063]
[1760121436934,1.50644935,117710.0,117700.0,0.12058063]
[1760121437444,1.47013677,117710.0,117700.0,0.12058063]
[1760121437654,1.53420318,117710.0,117700.0,0.12058063]
[1760121437878,6.13000218,117710.0,117700.0,0.12058063]
[1760121438095,6.13000218,117710.0,117700.0,0.1050733]
[1760121438096,7.23822373,117710.0,117700.0,0.1050733]
[1760121438316,0.16992353,117700.0,117690.0,0.05]
[1760121438552,5.48584269,117700.0,117690.0,0.05]
[1760121438769,7.11227505,117700.0,117690.0,0.05]
[1760121438999,7.13051058,117700.0,117690.0,0.05]
[1760121439230,7.43051058,117700.0,117690.0,0.05]